[Event "Early-Titled-Tuesday-Blitz-May-28-2024"]
[Site "Chess.com"]
[Date "2024.05.28"]
[Round "10"]
[White "Azeryahu"]
[Black "MrLion3000"]
[Result "1/2-1/2"]
[WhiteElo "2925"]
[BlackElo "2795"]
[TimeControl "180+1"]
[EndTime "10:00:58 PDT"]
[Termination "Game drawn by 50-move rule"]

1. e4 {[%clk 0:03:00.9]} 1... c5 {[%clk 0:02:58.6]} 2. Nf3 {[%clk 0:02:59.5]}
2... d6 {[%clk 0:02:58.5]} 3. h3 {[%clk 0:02:51.3]} 3... Nf6 {[%clk 0:02:56.3]}
4. Nc3 {[%clk 0:02:51.3]} 4... Nc6 {[%clk 0:02:55.8]} 5. d4 {[%clk 0:02:51.2]}
5... cxd4 {[%clk 0:02:55.5]} 6. Nxd4 {[%clk 0:02:52.1]} 6... e6 {[%clk
0:02:51.8]} 7. Be3 {[%clk 0:02:49.4]} 7... Be7 {[%clk 0:02:50.4]} 8. Qd2 {[%clk
0:02:45.3]} 8... a6 {[%clk 0:02:47.2]} 9. O-O-O {[%clk 0:02:45.1]} 9... Qc7
{[%clk 0:02:43.9]} 10. g4 {[%clk 0:02:45.1]} 10... b5 {[%clk 0:02:30.6]} 11. a3
{[%clk 0:02:36.7]} 11... Bb7 {[%clk 0:02:27.9]} 12. g5 {[%clk 0:02:23.9]} 12...
Nd7 {[%clk 0:02:14.4]} 13. Ndxb5 {[%clk 0:02:24]} 13... axb5 {[%clk 0:02:12.3]}
14. Nxb5 {[%clk 0:02:24.9]} 14... Qa5 {[%clk 0:01:53.9]} 15. Nxd6+ {[%clk
0:02:23.8]} 15... Bxd6 {[%clk 0:01:54.2]} 16. Qxd6 {[%clk 0:02:22.2]} 16... Rd8
{[%clk 0:01:50]} 17. f4 {[%clk 0:01:51.1]} 17... Nde5 {[%clk 0:01:24.7]} 18. Qc5
{[%clk 0:01:50.6]} 18... Qxc5 {[%clk 0:01:24.9]} 19. Bxc5 {[%clk 0:01:46.6]}
19... Rxd1+ {[%clk 0:01:19.9]} 20. Kxd1 {[%clk 0:01:47.5]} 20... Ng6 {[%clk
0:01:20.1]} 21. Be3 {[%clk 0:01:42.8]} 21... Nce7 {[%clk 0:01:18.1]} 22. Bd3
{[%clk 0:01:39.9]} 22... f5 {[%clk 0:00:51.3]} 23. gxf6 {[%clk 0:01:36.6]} 23...
gxf6 {[%clk 0:00:52.2]} 24. Rg1 {[%clk 0:01:34.9]} 24... f5 {[%clk 0:00:50.1]}
25. exf5 {[%clk 0:01:31.8]} 25... Nxf5 {[%clk 0:00:51]} 26. Bd2 {[%clk
0:01:27.9]} 26... Kf7 {[%clk 0:00:49.4]} 27. a4 {[%clk 0:01:23.9]} 27... Rd8
{[%clk 0:00:43.5]} 28. a5 {[%clk 0:01:21.2]} 28... Rd6 {[%clk 0:00:42.6]} 29. b4
{[%clk 0:01:20.5]} 29... Ngh4 {[%clk 0:00:32.6]} 30. b5 {[%clk 0:01:08.9]} 30...
Nf3 {[%clk 0:00:32.9]} 31. Rf1 {[%clk 0:01:05.6]} 31... N5d4 {[%clk 0:00:32.4]}
32. Bb4 {[%clk 0:00:49.5]} 32... Rd7 {[%clk 0:00:09.5]} 33. a6 {[%clk 0:00:48]}
33... Bc8 {[%clk 0:00:05.5]} 34. Kc1 {[%clk 0:00:36.8]} 34... Nh4 {[%clk
0:00:02.1]} 35. b6 {[%clk 0:00:33.7]} 35... Nc6 {[%clk 0:00:01.4]} 36. Bc5
{[%clk 0:00:26.7]} 36... Rxd3 {[%clk 0:00:01.6]} 37. cxd3 {[%clk 0:00:24.5]}
37... Bxa6 {[%clk 0:00:01.9]} 38. Kd2 {[%clk 0:00:25.2]} 38... Nf5 {[%clk
0:00:01.9]} 39. Ra1 {[%clk 0:00:15.8]} 39... Bb7 {[%clk 0:00:02.3]} 40. Bf2
{[%clk 0:00:16.3]} 40... h5 {[%clk 0:00:01.8]} 41. Ra4 {[%clk 0:00:15.3]} 41...
h4 {[%clk 0:00:02]} 42. Rc4 {[%clk 0:00:14.6]} 42... Ke7 {[%clk 0:00:02.4]} 43.
Rc5 {[%clk 0:00:14.8]} 43... Kd7 {[%clk 0:00:02.5]} 44. Rc1 {[%clk 0:00:15.4]}
44... Kd6 {[%clk 0:00:02.9]} 45. Rg1 {[%clk 0:00:16]} 45... Nce7 {[%clk
0:00:01.4]} 46. Rg4 {[%clk 0:00:14.4]} 46... Kc6 {[%clk 0:00:01.5]} 47. Bxh4
{[%clk 0:00:14.3]} 47... Nd5 {[%clk 0:00:01]} 48. Bf2 {[%clk 0:00:13.7]} 48...
Nxb6 {[%clk 0:00:01.6]} 49. Bxb6 {[%clk 0:00:14.1]} 49... Kxb6 {[%clk
0:00:02.5]} 50. h4 {[%clk 0:00:13.7]} 50... Bf3 {[%clk 0:00:02.5]} 51. Rg6
{[%clk 0:00:14]} 51... Nxh4 {[%clk 0:00:02.9]} 52. Rxe6+ {[%clk 0:00:14.7]}
52... Kc5 {[%clk 0:00:03.5]} 53. Ke3 {[%clk 0:00:10.7]} 53... Bd5 {[%clk
0:00:03.4]} 54. Rf6 {[%clk 0:00:09.3]} 54... Ng2+ {[%clk 0:00:02.7]} 55. Kf2
{[%clk 0:00:09.3]} 55... Kd4 {[%clk 0:00:03.2]} 56. Rf5 {[%clk 0:00:07.6]} 56...
Ne3 {[%clk 0:00:02.6]} 57. Rg5 {[%clk 0:00:06]} 57... Kxd3 {[%clk 0:00:02.3]}
58. f5 {[%clk 0:00:06.2]} 58... Nxf5 {[%clk 0:00:02.6]} 59. Rxf5 {[%clk
0:00:06.4]} 59... Be4 {[%clk 0:00:03.2]} 60. Rf4 {[%clk 0:00:06.4]} 60... Kd4
{[%clk 0:00:03.7]} 61. Ke2 {[%clk 0:00:06.9]} 61... Ke5 {[%clk 0:00:03.7]} 62.
Ke3 {[%clk 0:00:07.8]} 62... Bf5 {[%clk 0:00:04.1]} 63. Rh4 {[%clk 0:00:07.8]}
63... Kf6 {[%clk 0:00:04.5]} 64. Kf4 {[%clk 0:00:07.8]} 64... Bg6 {[%clk
0:00:05.1]} 65. Rh6 {[%clk 0:00:08.2]} 65... Kg7 {[%clk 0:00:05.6]} 66. Kg5
{[%clk 0:00:08.7]} 66... Bf7 {[%clk 0:00:06.2]} 67. Rb6 {[%clk 0:00:08.3]} 67...
Kh8 {[%clk 0:00:05.9]} 68. Rb7 {[%clk 0:00:08.2]} 68... Bg8 {[%clk 0:00:06]} 69.
Kh6 {[%clk 0:00:08.5]} 69... Bd5 {[%clk 0:00:05.7]} 70. Rh7+ {[%clk 0:00:08.6]}
70... Kg8 {[%clk 0:00:05.7]} 71. Rd7 {[%clk 0:00:09.5]} 71... Be6 {[%clk
0:00:04.9]} 72. Rd6 {[%clk 0:00:07.8]} 72... Kf7 {[%clk 0:00:04.8]} 73. Kg5
{[%clk 0:00:07.8]} 73... Ke7 {[%clk 0:00:05.3]} 74. Ra6 {[%clk 0:00:08]} 74...
Bc4 {[%clk 0:00:04.6]} 75. Rb6 {[%clk 0:00:07.9]} 75... Kd7 {[%clk 0:00:04.5]}
76. Kf4 {[%clk 0:00:08.1]} 76... Ke7 {[%clk 0:00:04.5]} 77. Ke5 {[%clk
0:00:07.7]} 77... Kf7 {[%clk 0:00:05]} 78. Rb7+ {[%clk 0:00:07.3]} 78... Kg6
{[%clk 0:00:05.5]} 79. Rb8 {[%clk 0:00:07.4]} 79... Kg5 {[%clk 0:00:05.6]} 80.
Rb4 {[%clk 0:00:05]} 80... Ba2 {[%clk 0:00:05.7]} 81. Rb2 {[%clk 0:00:05.1]}
81... Bc4 {[%clk 0:00:05.1]} 82. Rg2+ {[%clk 0:00:05.4]} 82... Kh6 {[%clk
0:00:03.8]} 83. Kf6 {[%clk 0:00:05.9]} 83... Kh7 {[%clk 0:00:04.1]} 84. Rh2+
{[%clk 0:00:03.8]} 84... Kg8 {[%clk 0:00:04.3]} 85. Rc2 {[%clk 0:00:04.3]} 85...
Bb3 {[%clk 0:00:04.3]} 86. Rc3 {[%clk 0:00:04.6]} 86... Ba2 {[%clk 0:00:04.3]}
87. Kg6 {[%clk 0:00:05]} 87... Kf8 {[%clk 0:00:04.2]} 88. Kf6 {[%clk 0:00:05.4]}
88... Kg8 {[%clk 0:00:04.6]} 89. Ra3 {[%clk 0:00:03.4]} 89... Bc4 {[%clk
0:00:03.9]} 90. Ra5 {[%clk 0:00:03.8]} 90... Kh8 {[%clk 0:00:03.5]} 91. Rh5+
{[%clk 0:00:02.7]} 91... Kg8 {[%clk 0:00:03.4]} 92. Rh4 {[%clk 0:00:02.9]} 92...
Bb3 {[%clk 0:00:03.2]} 93. Rg4+ {[%clk 0:00:03.4]} 93... Kh8 {[%clk 0:00:03.5]}
94. Kg6 {[%clk 0:00:03.1]} 94... Bc2+ {[%clk 0:00:03.3]} 95. Kh6 {[%clk
0:00:03]} 95... Bb3 {[%clk 0:00:03.8]} 96. Rb4 {[%clk 0:00:02.5]} 96... Bg8
{[%clk 0:00:03.9]} 97. Rb7 {[%clk 0:00:02.5]} 97... Bd5 {[%clk 0:00:04.3]} 98.
Rc7 {[%clk 0:00:02.6]} 98... Bg8 {[%clk 0:00:04.7]} 99. Kg6 {[%clk 0:00:02.9]}
99... Bb3 {[%clk 0:00:05.2]} 100. Rh7+ {[%clk 0:00:02.8]} 100... Kg8 {[%clk
0:00:04.5]} 101. Rc7 {[%clk 0:00:03.7]} 101... Kh8 {[%clk 0:00:03.8]} 102. Rc8+
{[%clk 0:00:02.2]} 102... Bg8 {[%clk 0:00:03.2]} 103. Kf6 {[%clk 0:00:03.1]}
103... Kh7 {[%clk 0:00:02.5]} 104. Rc7+ {[%clk 0:00:03.8]} 104... Kh8 {[%clk
0:00:03]} 105. Rc1 {[%clk 0:00:04.7]} 105... Bb3 {[%clk 0:00:02.6]} 106. Rh1+
{[%clk 0:00:04.5]} 106... Kg8 {[%clk 0:00:03]} 107. Rh4 {[%clk 0:00:04.6]}
107... Ba2 {[%clk 0:00:02.3]} 108. Rb4 {[%clk 0:00:04.5]} 108... Kh8 {[%clk
0:00:02.3]} 109. Kg6 {[%clk 0:00:04.1]} 1/2-1/2

[Event "Early-Titled-Tuesday-Blitz-May-28-2024"]
[Site "Chess.com"]
[Date "2024.05.28"]
[Round "10"]
[White "alreadybroken23"]
[Black "BashiqChess"]
[Result "0-1"]
[WhiteElo "2597"]
[BlackElo "2456"]
[TimeControl "180+1"]
[EndTime "10:01:06 PDT"]
[Termination "BashiqChess won on time"]

1. Nf3 {[%clk 0:03:00.9]} 1... Nf6 {[%clk 0:02:57]} 2. g3 {[%clk 0:03:00.7]}
2... d5 {[%clk 0:02:55.2]} 3. Bg2 {[%clk 0:03:00.1]} 3... e6 {[%clk 0:02:54.4]}
4. O-O {[%clk 0:03:00.4]} 4... Be7 {[%clk 0:02:49.8]} 5. c4 {[%clk 0:02:59.1]}
5... dxc4 {[%clk 0:02:43.5]} 6. Qa4+ {[%clk 0:02:56.1]} 6... Nbd7 {[%clk
0:02:42.9]} 7. Qxc4 {[%clk 0:02:55.6]} 7... a6 {[%clk 0:02:39.9]} 8. Qc2 {[%clk
0:02:53.2]} 8... c5 {[%clk 0:02:40.3]} 9. b3 {[%clk 0:02:52.4]} 9... Ra7 {[%clk
0:02:31.7]} 10. Bb2 {[%clk 0:02:52.2]} 10... b5 {[%clk 0:02:30.9]} 11. Nc3
{[%clk 0:02:47.6]} 11... Bb7 {[%clk 0:02:30.3]} 12. d3 {[%clk 0:02:44.6]} 12...
O-O {[%clk 0:02:29.6]} 13. Ne4 {[%clk 0:02:40.6]} 13... Qa8 {[%clk 0:02:24.4]}
14. Nxf6+ {[%clk 0:02:31.4]} 14... Nxf6 {[%clk 0:02:14.4]} 15. Rac1 {[%clk
0:02:30.5]} 15... Rc8 {[%clk 0:02:12.5]} 16. Qb1 {[%clk 0:02:25.6]} 16... Nd5
{[%clk 0:02:01.6]} 17. a3 {[%clk 0:02:14.3]} 17... Bf6 {[%clk 0:01:58.2]} 18. e4
{[%clk 0:02:13.9]} 18... Bxb2 {[%clk 0:01:51.7]} 19. Qxb2 {[%clk 0:02:14.8]}
19... Ne7 {[%clk 0:01:51.7]} 20. Rc3 {[%clk 0:02:10]} 20... c4 {[%clk
0:01:34.4]} 21. bxc4 {[%clk 0:01:14.3]} 21... bxc4 {[%clk 0:01:35.3]} 22. Ne5
{[%clk 0:01:14.9]} 22... cxd3 {[%clk 0:01:24.9]} 23. Rxc8+ {[%clk 0:01:15.1]}
23... Bxc8 {[%clk 0:00:30.8]} 24. Nxd3 {[%clk 0:01:14.3]} 24... Rc7 {[%clk
0:00:31.2]} 25. Rc1 {[%clk 0:01:11.7]} 25... Rxc1+ {[%clk 0:00:23]} 26. Qxc1
{[%clk 0:01:12.6]} 26... Bb7 {[%clk 0:00:22.4]} 27. Nc5 {[%clk 0:01:12.2]} 27...
Bc6 {[%clk 0:00:21]} 28. Qd2 {[%clk 0:01:06.6]} 28... h6 {[%clk 0:00:20.3]} 29.
Qd6 {[%clk 0:01:06.3]} 29... Ng6 {[%clk 0:00:18.9]} 30. h4 {[%clk 0:01:05.9]}
30... Nf8 {[%clk 0:00:15.8]} 31. f3 {[%clk 0:01:00.3]} 31... Qc8 {[%clk
0:00:15.5]} 32. Kh2 {[%clk 0:00:56.6]} 32... Nd7 {[%clk 0:00:15.9]} 33. Nd3
{[%clk 0:00:56.7]} 33... Nf6 {[%clk 0:00:14.4]} 34. Ne5 {[%clk 0:00:49.4]} 34...
Bb5 {[%clk 0:00:13.9]} 35. Qe7 {[%clk 0:00:48.1]} 35... Qf8 {[%clk 0:00:13.8]}
36. Qc7 {[%clk 0:00:48.6]} 36... Qe8 {[%clk 0:00:10.9]} 37. g4 {[%clk
0:00:45.8]} 37... Nd7 {[%clk 0:00:10.9]} 38. g5 {[%clk 0:00:40.5]} 38... hxg5
{[%clk 0:00:09]} 39. hxg5 {[%clk 0:00:41.4]} 39... Nxe5 {[%clk 0:00:08.8]} 40.
Qxe5 {[%clk 0:00:42.3]} 40... g6 {[%clk 0:00:08.3]} 41. Bh3 {[%clk 0:00:41.6]}
41... Qd7 {[%clk 0:00:06.7]} 42. Kg3 {[%clk 0:00:38.9]} 42... Qd8 {[%clk
0:00:04.8]} 43. Bg2 {[%clk 0:00:37.9]} 43... Qd1 {[%clk 0:00:04.7]} 44. Qb8+
{[%clk 0:00:32.5]} 44... Kg7 {[%clk 0:00:04.9]} 45. Qe5+ {[%clk 0:00:31]} 45...
Kg8 {[%clk 0:00:05.5]} 46. Kh2 {[%clk 0:00:28.5]} 46... Qe1 {[%clk 0:00:05.3]}
47. Qf4 {[%clk 0:00:28]} 47... Qa1 {[%clk 0:00:04.3]} 48. Qd6 {[%clk 0:00:26.8]}
48... Qh8+ {[%clk 0:00:03.7]} 49. Kg3 {[%clk 0:00:26.2]} 49... Qh5 {[%clk
0:00:03.2]} 50. f4 {[%clk 0:00:26]} 50... Qe2 {[%clk 0:00:02.6]} 51. Qd4 {[%clk
0:00:18.6]} 51... Qe1+ {[%clk 0:00:02.7]} 52. Kh3 {[%clk 0:00:17.8]} 52... Bf1
{[%clk 0:00:02.4]} 53. Qd8+ {[%clk 0:00:17.7]} 53... Kg7 {[%clk 0:00:02.4]} 54.
Qd4+ {[%clk 0:00:17.2]} 54... Kg8 {[%clk 0:00:02.5]} 55. Bxf1 {[%clk 0:00:11.6]}
55... Qxf1+ {[%clk 0:00:02.6]} 56. Kg3 {[%clk 0:00:12.5]} 56... Qe1+ {[%clk
0:00:02.7]} 57. Kf3 {[%clk 0:00:12.9]} 57... Qf1+ {[%clk 0:00:02.7]} 58. Qf2
{[%clk 0:00:12.8]} 58... Qc1 {[%clk 0:00:01.8]} 59. Qe3 {[%clk 0:00:12.9]} 59...
Qc4 {[%clk 0:00:01.8]} 60. Kg3 {[%clk 0:00:12.2]} 60... Qf1 {[%clk 0:00:02]} 61.
Qd4 {[%clk 0:00:11.4]} 61... Qb5 {[%clk 0:00:02.1]} 62. Qd8+ {[%clk 0:00:11.2]}
62... Kg7 {[%clk 0:00:02.3]} 63. Qf6+ {[%clk 0:00:11.5]} 63... Kg8 {[%clk
0:00:02.7]} 64. Qc3 {[%clk 0:00:11.2]} 64... Kf8 {[%clk 0:00:02.7]} 65. Qc8+
{[%clk 0:00:10.5]} 65... Ke7 {[%clk 0:00:02.7]} 66. Qc7+ {[%clk 0:00:11.1]}
66... Ke8 {[%clk 0:00:03]} 67. Qc8+ {[%clk 0:00:11]} 67... Ke7 {[%clk
0:00:03.6]} 68. Qc3 {[%clk 0:00:11.9]} 68... Qb7 {[%clk 0:00:03]} 69. Kf3 {[%clk
0:00:12.1]} 69... Qb5 {[%clk 0:00:03.2]} 70. Ke3 {[%clk 0:00:12.2]} 70... Qb6+
{[%clk 0:00:03.3]} 71. Qd4 {[%clk 0:00:12.7]} 71... Qxd4+ {[%clk 0:00:03.4]} 72.
Kxd4 {[%clk 0:00:12.9]} 72... Kd6 {[%clk 0:00:04]} 73. Kc4 {[%clk 0:00:12.2]}
73... Kc6 {[%clk 0:00:04.4]} 74. a4 {[%clk 0:00:11.9]} 74... a5 {[%clk
0:00:04.4]} 75. Kd4 {[%clk 0:00:10.8]} 75... Kd6 {[%clk 0:00:05.1]} 76. Kc4
{[%clk 0:00:11.2]} 76... Kc6 {[%clk 0:00:05.4]} 77. Kd3 {[%clk 0:00:09.8]} 77...
Kc5 {[%clk 0:00:05.2]} 78. Kc3 {[%clk 0:00:10.4]} 78... Kb6 {[%clk 0:00:04]} 79.
Kd4 {[%clk 0:00:09.9]} 79... Kc6 {[%clk 0:00:04.5]} 80. Kc4 {[%clk 0:00:10.4]}
80... Kb6 {[%clk 0:00:04.3]} 81. Kd4 {[%clk 0:00:10.5]} 81... Kc6 {[%clk
0:00:04.9]} 82. Ke5 {[%clk 0:00:11.1]} 82... Kd7 {[%clk 0:00:05.6]} 83. Kf6
{[%clk 0:00:11]} 83... Ke8 {[%clk 0:00:06.1]} 84. Kg7 {[%clk 0:00:11.5]} 84...
Ke7 {[%clk 0:00:06.3]} 85. Kg8 {[%clk 0:00:08.9]} 85... Ke8 {[%clk 0:00:04.7]}
86. Kg7 {[%clk 0:00:09.5]} 86... Ke7 {[%clk 0:00:05]} 87. Kh7 {[%clk 0:00:08.5]}
87... Kf8 {[%clk 0:00:04.4]} 88. Kh8 {[%clk 0:00:08.9]} 88... f6 {[%clk
0:00:02.9]} 89. gxf6 {[%clk 0:00:04.3]} 89... e5 {[%clk 0:00:03]} 90. fxe5
{[%clk 0:00:04.9]} 90... Kf7 {[%clk 0:00:02]} 91. Kh7 {[%clk 0:00:01.3]} 91...
g5 {[%clk 0:00:02.6]} 92. Kh6 {[%clk 0:00:01.8]} 92... g4 {[%clk 0:00:02.6]} 93.
Kg5 {[%clk 0:00:01.4]} 93... g3 {[%clk 0:00:02.9]} 94. Kf5 {[%clk 0:00:02.3]}
94... g2 {[%clk 0:00:03.5]} 95. e6+ {[%clk 0:00:03.2]} 95... Kg8 {[%clk
0:00:03.5]} 96. f7+ {[%clk 0:00:01.9]} 96... Kg7 {[%clk 0:00:03.5]} 97. f8=Q+
{[%clk 0:00:02.4]} 97... Kxf8 {[%clk 0:00:03.5]} 98. e7+ {[%clk 0:00:03.3]}
98... Ke8 {[%clk 0:00:04.2]} 99. Ke5 {[%clk 0:00:04.2]} 99... g1=Q {[%clk
0:00:04.9]} 100. Kd6 {[%clk 0:00:04.6]} 100... Qb1 {[%clk 0:00:05.8]} 101. Kd5
{[%clk 0:00:05.5]} 101... Qb4 {[%clk 0:00:06.7]} 102. e5 {[%clk 0:00:05.4]}
102... Qxa4 {[%clk 0:00:07.6]} 103. Ke6 {[%clk 0:00:06.3]} 103... Qb3+ {[%clk
0:00:08.2]} 104. Kf5 {[%clk 0:00:07.2]} 104... a4 {[%clk 0:00:09.1]} 105. Kf6
{[%clk 0:00:07.4]} 105... Qb6+ {[%clk 0:00:09.1]} 106. e6 {[%clk 0:00:08.3]}
106... Qc6 {[%clk 0:00:09.1]} 107. Kf5 {[%clk 0:00:09.2]} 107... Kxe7 {[%clk
0:00:10]} 108. Kf4 {[%clk 0:00:10]} 108... Qxe6 {[%clk 0:00:10.9]} 0-1

[Event "Early-Titled-Tuesday-Blitz-May-28-2024"]
[Site "Chess.com"]
[Date "2024.05.28"]
[Round "11"]
[White "Mesa_1"]
[Black "JanMur7"]
[Result "1-0"]
[WhiteElo "2563"]
[BlackElo "2282"]
[TimeControl "180+1"]
[EndTime "10:02:53 PDT"]
[Termination "Mesa_1 won by resignation"]

1. e4 {[%clk 0:02:55.1]} 1... g6 {[%clk 0:02:59.9]} 2. d4 {[%clk 0:02:53.7]}
2... Bg7 {[%clk 0:03:00.4]} 3. Nc3 {[%clk 0:02:54.1]} 3... c5 {[%clk 0:03:00.4]}
4. Nf3 {[%clk 0:02:55]} 4... cxd4 {[%clk 0:02:59.9]} 5. Nxd4 {[%clk 0:02:55.9]}
5... Nc6 {[%clk 0:03:00]} 6. Be3 {[%clk 0:02:56.6]} 6... d6 {[%clk 0:02:59.8]}
7. Bc4 {[%clk 0:02:57]} 7... Nf6 {[%clk 0:02:59.8]} 8. Bb3 {[%clk 0:02:57.5]}
8... Ng4 {[%clk 0:02:59]} 9. Nxc6 {[%clk 0:02:54.1]} 9... bxc6 {[%clk 0:02:59]}
10. Bd2 {[%clk 0:02:53.8]} 10... Qb6 {[%clk 0:02:57.5]} 11. Qe2 {[%clk
0:02:48.9]} 11... Ba6 {[%clk 0:02:42.4]} 12. Qxg4 {[%clk 0:02:48.2]} 1-0

[Event "Early-Titled-Tuesday-Blitz-May-28-2024"]
[Site "Chess.com"]
[Date "2024.05.28"]
[Round "11"]
[White "Semetey"]
[Black "korbul"]
[Result "1-0"]
[WhiteElo "2559"]
[BlackElo "2649"]
[TimeControl "180+1"]
[EndTime "10:04:29 PDT"]
[Termination "Semetey won by resignation"]

1. Nc3 {[%clk 0:02:53.6]} 1... d5 {[%clk 0:02:58.3]} 2. e4 {[%clk 0:02:52.4]}
2... d4 {[%clk 0:02:58]} 3. Nce2 {[%clk 0:02:52.3]} 3... g6 {[%clk 0:02:58.7]}
4. Nf3 {[%clk 0:02:50.9]} 4... c5 {[%clk 0:02:57.4]} 5. Ng3 {[%clk 0:02:50.7]}
5... Bg7 {[%clk 0:02:57.5]} 6. Bc4 {[%clk 0:02:50.6]} 6... Nf6 {[%clk
0:02:57.1]} 7. d3 {[%clk 0:02:50.6]} 7... O-O {[%clk 0:02:56.9]} 8. O-O {[%clk
0:02:50.2]} 8... Nc6 {[%clk 0:02:57.1]} 9. a4 {[%clk 0:02:46.2]} 9... a6 {[%clk
0:02:55.9]} 10. h3 {[%clk 0:02:27]} 10... e5 {[%clk 0:02:54.8]} 11. Nh2 {[%clk
0:02:26.2]} 11... Rb8 {[%clk 0:02:54.3]} 12. f4 {[%clk 0:02:21.9]} 12... b5
{[%clk 0:02:53.2]} 13. axb5 {[%clk 0:02:18.9]} 13... axb5 {[%clk 0:02:53]} 14.
Ba2 {[%clk 0:02:19.5]} 14... Ne8 {[%clk 0:02:39.2]} 15. Nf3 {[%clk 0:02:17]}
15... Nd6 {[%clk 0:02:38.3]} 16. fxe5 {[%clk 0:02:06]} 16... Nxe5 {[%clk
0:02:38.1]} 17. Bf4 {[%clk 0:02:06]} 17... Qe7 {[%clk 0:02:37.5]} 18. Qd2 {[%clk
0:02:05.4]} 18... Kh8 {[%clk 0:02:35.4]} 19. Bg5 {[%clk 0:02:02.6]} 19... f6
{[%clk 0:02:34.9]} 20. Nxe5 {[%clk 0:02:02.8]} 20... Qxe5 {[%clk 0:02:34.5]} 21.
Bf4 {[%clk 0:02:02.9]} 21... Qe7 {[%clk 0:02:34.1]} 22. Bd5 {[%clk 0:01:53.4]}
22... Nf7 {[%clk 0:02:32.5]} 23. Bxb8 {[%clk 0:01:52]} 1-0

[Event "Early-Titled-Tuesday-Blitz-May-28-2024"]
[Site "Chess.com"]
[Date "2024.05.28"]
[Round "11"]
[White "Fore_Man"]
[Black "jamesaltucher"]
[Result "0-1"]
[WhiteElo "2205"]
[BlackElo "2064"]
[TimeControl "180+1"]
[EndTime "10:04:30 PDT"]
[Termination "jamesaltucher won by resignation"]

1. Nf3 {[%clk 0:03:00.9]} 1... Nf6 {[%clk 0:02:59.6]} 2. c4 {[%clk 0:03:00.8]}
2... c5 {[%clk 0:02:58.8]} 3. b3 {[%clk 0:03:00.7]} 3... Nc6 {[%clk 0:02:59.2]}
4. Bb2 {[%clk 0:03:01]} 4... g6 {[%clk 0:02:59.7]} 5. e3 {[%clk 0:03:01.4]} 5...
Bg7 {[%clk 0:03:00.2]} 6. d4 {[%clk 0:03:02]} 6... cxd4 {[%clk 0:02:59.1]} 7.
exd4 {[%clk 0:03:02.9]} 7... d5 {[%clk 0:02:59.4]} 8. Be2 {[%clk 0:03:01.4]}
8... O-O {[%clk 0:02:59.1]} 9. O-O {[%clk 0:03:01.3]} 9... Bf5 {[%clk
0:02:57.8]} 10. Nc3 {[%clk 0:02:55]} 10... e6 {[%clk 0:02:51.8]} 11. Nh4 {[%clk
0:02:40]} 11... dxc4 {[%clk 0:02:45.1]} 12. Nxf5 {[%clk 0:02:37.5]} 12... exf5
{[%clk 0:02:37.9]} 13. Bxc4 {[%clk 0:02:36.8]} 13... Qxd4 {[%clk 0:02:29.3]} 14.
Qf3 {[%clk 0:02:25.4]} 14... Ne5 {[%clk 0:02:23.2]} 15. Qxb7 {[%clk 0:02:13.2]}
15... Nxc4 {[%clk 0:02:19.3]} 16. Rfd1 {[%clk 0:02:09]} 16... Qb6 {[%clk
0:02:09.8]} 0-1

[Event "Early-Titled-Tuesday-Blitz-May-28-2024"]
[Site "Chess.com"]
[Date "2024.05.28"]
[Round "11"]
[White "Jeppesen08"]
[Black "Ginger_GM"]
[Result "0-1"]
[WhiteElo "2494"]
[BlackElo "2743"]
[TimeControl "180+1"]
[EndTime "10:04:37 PDT"]
[Termination "Ginger_GM won by resignation"]

1. Nf3 {[%clk 0:03:00.9]} 1... f5 {[%clk 0:02:59.5]} 2. g3 {[%clk 0:02:56.6]}
2... Nf6 {[%clk 0:02:59.7]} 3. Bg2 {[%clk 0:02:57.1]} 3... d6 {[%clk 0:03:00]}
4. O-O {[%clk 0:02:57.6]} 4... e5 {[%clk 0:02:59.8]} 5. d3 {[%clk 0:02:56.2]}
5... Be7 {[%clk 0:02:59.5]} 6. c4 {[%clk 0:02:53.1]} 6... O-O {[%clk 0:02:59.3]}
7. b4 {[%clk 0:02:53]} 7... Qe8 {[%clk 0:02:59.5]} 8. Bb2 {[%clk 0:02:52.4]}
8... Qh5 {[%clk 0:02:58.9]} 9. e3 {[%clk 0:02:47.7]} 9... Nc6 {[%clk 0:02:55.3]}
10. b5 {[%clk 0:02:46.1]} 10... Nd8 {[%clk 0:02:55.1]} 11. a4 {[%clk 0:02:45.2]}
11... Nf7 {[%clk 0:02:54.4]} 12. a5 {[%clk 0:02:42.8]} 12... Rb8 {[%clk
0:02:49.3]} 13. Nc3 {[%clk 0:02:37.4]} 13... f4 {[%clk 0:02:39.8]} 14. exf4
{[%clk 0:02:25.9]} 14... Bg4 {[%clk 0:02:38.8]} 15. h3 {[%clk 0:01:58.4]} 15...
Bxh3 {[%clk 0:02:38.6]} 16. Ng5 {[%clk 0:01:50]} 16... Bg4 {[%clk 0:02:31.3]}
17. Bf3 {[%clk 0:01:45.2]} 17... Nxg5 {[%clk 0:02:28.7]} 18. fxg5 {[%clk
0:01:39.9]} 18... Bxf3 {[%clk 0:02:27.9]} 0-1

[Event "Early-Titled-Tuesday-Blitz-May-28-2024"]
[Site "Chess.com"]
[Date "2024.05.28"]
[Round "11"]
[White "Kostya0705"]
[Black "David_George21"]
[Result "0-1"]
[WhiteElo "2570"]
[BlackElo "2433"]
[TimeControl "180+1"]
[EndTime "10:05:22 PDT"]
[Termination "David_George21 won by resignation"]

1. e4 {[%clk 0:03:00.9]} 1... c5 {[%clk 0:02:59.9]} 2. Nf3 {[%clk 0:02:59.5]}
2... d6 {[%clk 0:02:59.6]} 3. d4 {[%clk 0:02:59.8]} 3... cxd4 {[%clk 0:03:00.5]}
4. Nxd4 {[%clk 0:03:00.2]} 4... Nf6 {[%clk 0:03:01.3]} 5. Nc3 {[%clk 0:03:00.6]}
5... Nc6 {[%clk 0:03:01.8]} 6. Bg5 {[%clk 0:02:59.8]} 6... e6 {[%clk 0:03:01.6]}
7. Qd2 {[%clk 0:02:59.1]} 7... a6 {[%clk 0:03:01.4]} 8. O-O-O {[%clk 0:02:58.6]}
8... h6 {[%clk 0:03:02.1]} 9. Bxf6 {[%clk 0:02:54.7]} 9... Qxf6 {[%clk 0:03:00]}
10. Nxc6 {[%clk 0:02:55.2]} 10... bxc6 {[%clk 0:03:00.6]} 11. f4 {[%clk
0:02:54.3]} 11... d5 {[%clk 0:03:00]} 12. e5 {[%clk 0:02:54.1]} 12... Qd8 {[%clk
0:02:59.2]} 13. Kb1 {[%clk 0:02:52]} 13... Rb8 {[%clk 0:02:57.7]} 14. b3 {[%clk
0:02:52.3]} 14... Bb4 {[%clk 0:02:57]} 15. Qd3 {[%clk 0:02:51.7]} 15... c5
{[%clk 0:02:49.9]} 16. g4 {[%clk 0:02:51.6]} 16... c4 {[%clk 0:02:50.1]} 17. Qg3
{[%clk 0:02:50.6]} 17... Qa5 {[%clk 0:02:44.1]} 18. Ne2 {[%clk 0:02:47.1]} 18...
cxb3 {[%clk 0:02:12.5]} 19. axb3 {[%clk 0:02:43.1]} 19... Bd7 {[%clk 0:02:10.7]}
20. f5 {[%clk 0:02:40.1]} 20... Bb5 {[%clk 0:02:10.5]} 21. fxe6 {[%clk
0:02:29.9]} 21... Bxe2 {[%clk 0:02:01.4]} 22. exf7+ {[%clk 0:02:29.5]} 22... Kf8
{[%clk 0:02:00.1]} 23. e6 {[%clk 0:02:28]} 23... Rd8 {[%clk 0:01:44.9]} 24. Bxe2
{[%clk 0:02:19.8]} 24... Bc3 {[%clk 0:01:44.6]} 25. e7+ {[%clk 0:02:13.6]} 25...
Kxe7 {[%clk 0:01:43.7]} 26. Qe3+ {[%clk 0:02:08.3]} 26... Kf8 {[%clk 0:01:29.8]}
0-1